[Event "*** Titled Tuesday Blitz"]
[Site "Chess.com"]
[Date "2020.11.03"]
[Round "9"]
[White "Harry_Rakkel"]
[Black "fyall777"]
[Result "0-1"]
[WhiteElo "2615"]
[BlackElo "2460"]
[TimeControl "180+1"]
[EndTime "11:48:47 PST"]
[Termination "fyall777 won by checkmate"]

1. d4 {[%clk 0:02:41.6]} 1... d5 {[%clk 0:02:59.9]} 2. c4 {[%clk 0:02:39.7]}
2... c6 {[%clk 0:03:00]} 3. cxd5 {[%clk 0:02:37]} 3... cxd5 {[%clk 0:02:59.2]}
4. Nc3 {[%clk 0:02:37.5]} 4... Nc6 {[%clk 0:02:59.1]} 5. Nf3 {[%clk 0:02:38]}
5... Nf6 {[%clk 0:02:56.3]} 6. Bf4 {[%clk 0:02:37.7]} 6... a6 {[%clk 0:02:55.7]}
7. Ne5 {[%clk 0:02:36.7]} 7... e6 {[%clk 0:02:48.4]} 8. Rc1 {[%clk 0:02:33.9]}
8... Bd7 {[%clk 0:02:42.5]} 9. e3 {[%clk 0:02:30.3]} 9... Bb4 {[%clk 0:02:41.2]}
10. Bd3 {[%clk 0:02:28.6]} 10... Nxe5 {[%clk 0:02:35.1]} 11. Bxe5 {[%clk
0:02:27]} 11... Rc8 {[%clk 0:02:20.1]} 12. Qb3 {[%clk 0:02:23.5]} 12... Qa5
{[%clk 0:02:10.6]} 13. O-O {[%clk 0:02:19.2]} 13... O-O {[%clk 0:02:01.5]} 14.
Bxf6 {[%clk 0:01:37.8]} 14... gxf6 {[%clk 0:01:58.5]} 15. Bb1 {[%clk 0:01:38.2]}
15... f5 {[%clk 0:01:47.9]} 16. h3 {[%clk 0:01:28.5]} 16... Bxc3 {[%clk
0:01:38.2]} 17. bxc3 {[%clk 0:01:23.9]} 17... Bb5 {[%clk 0:01:33.3]} 18. Rfe1
{[%clk 0:01:23.6]} 18... Rc6 {[%clk 0:01:31.5]} 19. g4 {[%clk 0:01:20.5]} 19...
Rfc8 {[%clk 0:01:05.1]} 20. gxf5 {[%clk 0:01:18.5]} 20... Rxc3 {[%clk 0:01:05]}
21. Qb2 {[%clk 0:01:17.8]} 21... Rxc1 {[%clk 0:00:52.6]} 22. Rxc1 {[%clk
0:01:17]} 22... Rxc1+ {[%clk 0:00:52.6]} 23. Qxc1 {[%clk 0:01:16.7]} 23... Kg7
{[%clk 0:00:45]} 24. fxe6 {[%clk 0:01:10.8]} 24... fxe6 {[%clk 0:00:44.5]} 25.
Qc2 {[%clk 0:01:11.3]} 25... Qe1+ {[%clk 0:00:42.4]} 26. Kh2 {[%clk 0:01:04.1]}
26... Kf6 {[%clk 0:00:42]} 27. h4 {[%clk 0:01:00.7]} 27... Be2 {[%clk
0:00:41.4]} 28. Qxh7 {[%clk 0:00:26.7]} 28... Qxf2+ {[%clk 0:00:41]} 29. Kh3
{[%clk 0:00:27.3]} 29... Qxe3+ {[%clk 0:00:37.9]} 30. Kg2 {[%clk 0:00:24.9]}
30... Qf3+ {[%clk 0:00:36.6]} 31. Kh2 {[%clk 0:00:23.3]} 31... Qf2+ {[%clk
0:00:36]} 32. Kh3 {[%clk 0:00:23.2]} 32... Bf1+ {[%clk 0:00:36]} 33. Kg4 {[%clk
0:00:23]} 33... Be2+ {[%clk 0:00:27.9]} 34. Kh3 {[%clk 0:00:22.4]} 34... Qf3+
{[%clk 0:00:27.2]} 35. Kh2 {[%clk 0:00:22.4]} 35... Qf4+ {[%clk 0:00:25.9]} 36.
Kg2 {[%clk 0:00:20]} 36... Bf3+ {[%clk 0:00:24.2]} 37. Kg1 {[%clk 0:00:16]}
37... Qg3+ {[%clk 0:00:23.9]} 38. Kf1 {[%clk 0:00:16.9]} 38... Qg2+ {[%clk
0:00:23.8]} 39. Ke1 {[%clk 0:00:17.2]} 39... Qe2# {[%clk 0:00:24.3]} 0-1

[Event "*** Titled Tuesday Blitz"]
[Site "Chess.com"]
[Date "2020.11.03"]
[Round "9"]
[White "dosto07"]
[Black "DonBroca"]
[Result "1-0"]
[WhiteElo "2353"]
[BlackElo "2108"]
[TimeControl "180+1"]
[EndTime "11:48:48 PST"]
[Termination "dosto07 won by resignation"]

1. e4 {[%clk 0:03:00.8]} 1... c5 {[%clk 0:02:59.7]} 2. Nf3 {[%clk 0:02:59.4]}
2... d6 {[%clk 0:02:59.7]} 3. Bb5+ {[%clk 0:02:58.8]} 3... Nd7 {[%clk
0:02:58.1]} 4. d4 {[%clk 0:02:57.4]} 4... cxd4 {[%clk 0:02:57.1]} 5. Qxd4 {[%clk
0:02:57.2]} 5... Nf6 {[%clk 0:02:55]} 6. Bg5 {[%clk 0:02:55.7]} 6... e6 {[%clk
0:02:44.6]} 7. Nc3 {[%clk 0:02:52.5]} 7... Be7 {[%clk 0:02:44]} 8. O-O {[%clk
0:02:38.2]} 8... a6 {[%clk 0:02:34.8]} 9. Bxd7+ {[%clk 0:02:35.8]} 9... Bxd7
{[%clk 0:02:34.5]} 10. a4 {[%clk 0:02:34.3]} 10... Bc6 {[%clk 0:02:28.9]} 11.
Rfd1 {[%clk 0:02:28.5]} 11... O-O {[%clk 0:02:25.6]} 12. a5 {[%clk 0:02:25.4]}
12... h6 {[%clk 0:02:24.3]} 13. Bh4 {[%clk 0:02:24.4]} 13... g5 {[%clk
0:02:17.8]} 14. Bg3 {[%clk 0:02:23.9]} 14... e5 {[%clk 0:02:15.2]} 15. Qe3
{[%clk 0:02:15.3]} 15... Qc7 {[%clk 0:02:07.4]} 16. h4 {[%clk 0:02:14.4]} 16...
Nh7 {[%clk 0:01:34]} 17. hxg5 {[%clk 0:02:10.2]} 17... Nxg5 {[%clk 0:01:32.9]}
18. Nh4 {[%clk 0:02:05.6]} 18... Rad8 {[%clk 0:01:03.6]} 19. Nf5 {[%clk
0:02:03.7]} 19... Kh7 {[%clk 0:01:04]} 20. Qe2 {[%clk 0:02:02]} 20... Kg6 {[%clk
0:00:55.3]} 21. Rd3 {[%clk 0:01:51.5]} 21... Ne6 {[%clk 0:00:42.1]} 22. Nd5
{[%clk 0:01:38.3]} 22... Bxd5 {[%clk 0:00:41.4]} 23. exd5 {[%clk 0:01:37.3]}
23... Ng5 {[%clk 0:00:31.3]} 24. Nh4+ {[%clk 0:01:22.7]} 24... Kh7 {[%clk
0:00:28.5]} 25. Rc3 {[%clk 0:01:13.7]} 25... Qd7 {[%clk 0:00:27.2]} 26. Qh5
{[%clk 0:00:57.8]} 26... f5 {[%clk 0:00:20.3]} 27. Qg6+ {[%clk 0:00:56.3]} 27...
Kh8 {[%clk 0:00:20.4]} 28. Qxh6+ {[%clk 0:00:56.3]} 28... Nh7 {[%clk 0:00:20.4]}
29. Ng6+ {[%clk 0:00:54.8]} 29... Kg8 {[%clk 0:00:20.7]} 30. Nxf8 {[%clk
0:00:52.6]} 30... Bxf8 {[%clk 0:00:20.6]} 31. Qg6+ {[%clk 0:00:52.5]} 31... Bg7
{[%clk 0:00:20.3]} 32. Bh4 {[%clk 0:00:50]} 32... Rf8 {[%clk 0:00:18.6]} 33.
Qe6+ {[%clk 0:00:44.8]} 33... Qf7 {[%clk 0:00:14.7]} 34. Rc7 {[%clk 0:00:42.4]}
34... Qxe6 {[%clk 0:00:14.3]} 35. dxe6 {[%clk 0:00:42.3]} 35... Re8 {[%clk
0:00:15.2]} 36. e7 {[%clk 0:00:40.1]} 36... Bf6 {[%clk 0:00:14.3]} 37. Bxf6
{[%clk 0:00:37.8]} 37... Nxf6 {[%clk 0:00:15.2]} 38. Rxb7 {[%clk 0:00:37.7]}
38... Kf7 {[%clk 0:00:14.4]} 39. Ra7 {[%clk 0:00:29.6]} 39... Nd5 {[%clk
0:00:13.6]} 40. Rxa6 {[%clk 0:00:28.8]} 40... Rxe7 {[%clk 0:00:13.9]} 41. Rxd6
{[%clk 0:00:28.4]} 1-0

[Event "*** Titled Tuesday Blitz"]
[Site "Chess.com"]
[Date "2020.11.03"]
[Round "9"]
[White "Sebastian"]
[Black "chito89"]
[Result "0-1"]
[WhiteElo "2871"]
[BlackElo "2799"]
[TimeControl "180+1"]
[EndTime "11:48:51 PST"]
[Termination "chito89 won by resignation"]

1. e4 {[%clk 0:03:00.9]} 1... c5 {[%clk 0:02:57.9]} 2. Nf3 {[%clk 0:03:00.8]}
2... e6 {[%clk 0:02:58.4]} 3. d4 {[%clk 0:03:01.3]} 3... cxd4 {[%clk 0:02:59.3]}
4. Nxd4 {[%clk 0:03:01.8]} 4... Nc6 {[%clk 0:02:59.9]} 5. Nc3 {[%clk 0:03:01.9]}
5... Qc7 {[%clk 0:03:00.4]} 6. Be3 {[%clk 0:03:02.3]} 6... a6 {[%clk 0:03:00.2]}
7. Qd2 {[%clk 0:02:59.2]} 7... Nf6 {[%clk 0:03:00.2]} 8. O-O-O {[%clk
0:02:58.9]} 8... Be7 {[%clk 0:02:59.1]} 9. f3 {[%clk 0:02:59.4]} 9... h5 {[%clk
0:02:59]} 10. Nxc6 {[%clk 0:02:54]} 10... dxc6 {[%clk 0:02:47.7]} 11. Qf2 {[%clk
0:02:53.2]} 11... b5 {[%clk 0:02:38.5]} 12. Bb6 {[%clk 0:02:35.9]} 12... Qb8
{[%clk 0:02:23.7]} 13. Bc5 {[%clk 0:02:35]} 13... Bxc5 {[%clk 0:01:55]} 14. Qxc5
{[%clk 0:02:34]} 14... Qc7 {[%clk 0:01:55.9]} 15. Rd6 {[%clk 0:02:06.2]} 15...
Bb7 {[%clk 0:01:42.2]} 16. e5 {[%clk 0:01:51.9]} 16... Nd7 {[%clk 0:01:39]} 17.
Qe3 {[%clk 0:01:46.2]} 17... O-O-O {[%clk 0:01:09.7]} 18. f4 {[%clk 0:01:35.2]}
18... g5 {[%clk 0:01:09.7]} 19. g3 {[%clk 0:01:21]} 19... c5 {[%clk 0:01:09.1]}
20. Rg1 {[%clk 0:01:14.4]} 20... gxf4 {[%clk 0:01:08.3]} 21. gxf4 {[%clk
0:01:14.3]} 21... Nb6 {[%clk 0:01:08.7]} 22. Rxd8+ {[%clk 0:01:06.1]} 22... Rxd8
{[%clk 0:01:09.6]} 23. Be2 {[%clk 0:00:56.7]} 23... Kb8 {[%clk 0:01:07]} 24. Rd1
{[%clk 0:00:49.3]} 24... b4 {[%clk 0:00:52.1]} 25. Ne4 {[%clk 0:00:37.9]} 25...
Rxd1+ {[%clk 0:00:38.6]} 26. Bxd1 {[%clk 0:00:37.7]} 26... Nd5 {[%clk
0:00:25.4]} 27. Qf2 {[%clk 0:00:37.3]} 27... c4 {[%clk 0:00:21.8]} 28. Nd6
{[%clk 0:00:34.4]} 28... c3 {[%clk 0:00:20.9]} 29. Qd4 {[%clk 0:00:14.9]} 29...
Qa5 {[%clk 0:00:16.9]} 30. Qc4 {[%clk 0:00:04.5]} 30... cxb2+ {[%clk 0:00:15.3]}
31. Kxb2 {[%clk 0:00:04.1]} 31... Qa3+ {[%clk 0:00:14.6]} 32. Kb1 {[%clk
0:00:04.2]} 32... Nc3+ {[%clk 0:00:14.9]} 0-1

[Event "*** Titled Tuesday Blitz"]
[Site "Chess.com"]
[Date "2020.11.03"]
[Round "9"]
[White "Frogo47"]
[Black "annamaja"]
[Result "1-0"]
[WhiteElo "2462"]
[BlackElo "2310"]
[TimeControl "180+1"]
[EndTime "11:48:51 PST"]
[Termination "Frogo47 won on time"]

1. d4 {[%clk 0:03:00.9]} 1... d5 {[%clk 0:02:59.6]} 2. c4 {[%clk 0:03:00.6]}
2... c6 {[%clk 0:02:59.4]} 3. Nc3 {[%clk 0:02:59.9]} 3... Nf6 {[%clk 0:02:59.6]}
4. Nf3 {[%clk 0:03:00]} 4... e6 {[%clk 0:02:59.2]} 5. Qc2 {[%clk 0:03:00.1]}
5... dxc4 {[%clk 0:02:45.3]} 6. e4 {[%clk 0:02:58.3]} 6... b5 {[%clk 0:02:43.6]}
7. b3 {[%clk 0:02:58.7]} 7... cxb3 {[%clk 0:02:18.1]} 8. axb3 {[%clk 0:02:59.6]}
8... Bb4 {[%clk 0:02:15.9]} 9. Bd2 {[%clk 0:02:59]} 9... O-O {[%clk 0:02:14.2]}
10. Bd3 {[%clk 0:02:59.1]} 10... g6 {[%clk 0:02:07.1]} 11. O-O {[%clk
0:02:53.9]} 11... Bb7 {[%clk 0:02:02.4]} 12. Rfc1 {[%clk 0:02:53.3]} 12... Nbd7
{[%clk 0:02:00.6]} 13. Bh6 {[%clk 0:02:52.3]} 13... Re8 {[%clk 0:02:00.4]} 14.
h3 {[%clk 0:02:47.7]} 14... Qb6 {[%clk 0:01:56.4]} 15. Be3 {[%clk 0:02:46.3]}
15... a6 {[%clk 0:01:48.5]} 16. Ne2 {[%clk 0:02:32.5]} 16... Qc7 {[%clk
0:01:41.1]} 17. Bf4 {[%clk 0:02:23.4]} 17... Qb6 {[%clk 0:01:38.1]} 18. Be3
{[%clk 0:02:16.8]} 18... Qc7 {[%clk 0:01:36.6]} 19. Qb2 {[%clk 0:02:12]} 19...
Rad8 {[%clk 0:01:09.9]} 20. Bg5 {[%clk 0:02:11.6]} 20... Be7 {[%clk 0:01:06]}
21. Ng3 {[%clk 0:02:11.2]} 21... c5 {[%clk 0:00:54.1]} 22. e5 {[%clk 0:01:59.8]}
22... Nd5 {[%clk 0:00:47]} 23. Ne4 {[%clk 0:01:56.5]} 23... Bxg5 {[%clk
0:00:41.2]} 24. Nfxg5 {[%clk 0:01:53.5]} 24... Nf4 {[%clk 0:00:26]} 25. Bb1
{[%clk 0:01:51.4]} 25... c4 {[%clk 0:00:23]} 26. Qd2 {[%clk 0:01:44.5]} 26...
Nd5 {[%clk 0:00:16.5]} 27. bxc4 {[%clk 0:01:39.1]} 27... bxc4 {[%clk 0:00:17.4]}
28. Nd6 {[%clk 0:01:39.3]} 28... Rf8 {[%clk 0:00:17.1]} 29. Rxc4 {[%clk
0:01:36.8]} 29... Qb6 {[%clk 0:00:14.1]} 30. Be4 {[%clk 0:01:32.7]} 30... Ba8
{[%clk 0:00:09]} 31. Rb1 {[%clk 0:01:29.9]} 31... Qa7 {[%clk 0:00:09.4]} 32. h4
{[%clk 0:01:27.8]} 32... N5b6 {[%clk 0:00:08.6]} 33. Rc3 {[%clk 0:01:19.2]}
33... h6 {[%clk 0:00:08.8]} 34. Ngxf7 {[%clk 0:01:14.1]} 34... Rxf7 {[%clk
0:00:07.3]} 35. Bxa8 {[%clk 0:01:11.7]} 35... Rxa8 {[%clk 0:00:04]} 36. Nxf7
{[%clk 0:01:11.6]} 36... Kxf7 {[%clk 0:00:04.9]} 37. Qxh6 {[%clk 0:01:11.7]}
37... Nd5 {[%clk 0:00:04.5]} 38. Rf3+ {[%clk 0:01:11.6]} 38... Ke7 {[%clk
0:00:04.4]} 39. Qxg6 {[%clk 0:01:08.5]} 39... Qxd4 {[%clk 0:00:03.3]} 40. Qg7+
{[%clk 0:01:04.5]} 40... Kd8 {[%clk 0:00:03.3]} 41. Rb7 {[%clk 0:00:58.4]} 41...
N5b6 {[%clk 0:00:02.2]} 42. Rf7 {[%clk 0:00:49.3]} 1-0

[Event "*** Titled Tuesday Blitz"]
[Site "Chess.com"]
[Date "2020.11.03"]
[Round "9"]
[White "Fischerev7"]
[Black "Vyacheslav_N"]
[Result "1-0"]
[WhiteElo "2403"]
[BlackElo "2291"]
[TimeControl "180+1"]
[EndTime "11:48:52 PST"]
[Termination "Fischerev7 won on time"]

1. e4 {[%clk 0:03:00.2]} 1... c5 {[%clk 0:02:55.2]} 2. Nf3 {[%clk 0:02:59.8]}
2... Nc6 {[%clk 0:02:55.7]} 3. d4 {[%clk 0:02:59.2]} 3... cxd4 {[%clk
0:02:56.6]} 4. Nxd4 {[%clk 0:03:00.1]} 4... Nf6 {[%clk 0:02:56.8]} 5. Nc3 {[%clk
0:02:57.5]} 5... e5 {[%clk 0:02:57.3]} 6. Ndb5 {[%clk 0:02:57.1]} 6... d6 {[%clk
0:02:57.7]} 7. Bg5 {[%clk 0:02:56.1]} 7... a6 {[%clk 0:02:58.2]} 8. Na3 {[%clk
0:02:50.3]} 8... b5 {[%clk 0:02:58.5]} 9. Nd5 {[%clk 0:02:49.7]} 9... Be7 {[%clk
0:02:58]} 10. Bxf6 {[%clk 0:02:49.3]} 10... Bxf6 {[%clk 0:02:58.9]} 11. c4
{[%clk 0:02:49.8]} 11... b4 {[%clk 0:02:58.6]} 12. Nc2 {[%clk 0:02:49.4]} 12...
Bg5 {[%clk 0:02:54.8]} 13. g3 {[%clk 0:02:49.6]} 13... a5 {[%clk 0:02:52.4]} 14.
Bg2 {[%clk 0:02:49.7]} 14... O-O {[%clk 0:02:47.9]} 15. O-O {[%clk 0:02:48.3]}
15... Ra7 {[%clk 0:02:45.9]} 16. Qd3 {[%clk 0:02:42.3]} 16... Ne7 {[%clk
0:02:40.1]} 17. Nxe7+ {[%clk 0:02:34.6]} 17... Rxe7 {[%clk 0:02:27.7]} 18. Rfd1
{[%clk 0:02:31.4]} 18... Rd7 {[%clk 0:02:21.8]} 19. a3 {[%clk 0:02:30.3]} 19...
Qb6 {[%clk 0:02:15.7]} 20. axb4 {[%clk 0:02:29.6]} 20... axb4 {[%clk 0:02:16.6]}
21. b3 {[%clk 0:02:28.2]} 21... Bb7 {[%clk 0:01:39.2]} 22. h4 {[%clk 0:02:24.7]}
22... Bh6 {[%clk 0:01:29.5]} 23. Ra4 {[%clk 0:02:22.5]} 23... Qc5 {[%clk
0:01:29.3]} 24. Nxb4 {[%clk 0:02:20.2]} 24... Rb8 {[%clk 0:01:20.4]} 25. Nc2
{[%clk 0:02:08.3]} 25... Bc6 {[%clk 0:01:15]} 26. Ra6 {[%clk 0:02:01.2]} 26...
Bb7 {[%clk 0:00:58.5]} 27. Rxd6 {[%clk 0:01:52.3]} 27... Rxd6 {[%clk 0:00:45.4]}
28. Qxd6 {[%clk 0:01:53.2]} 28... Qxd6 {[%clk 0:00:46.2]} 29. Rxd6 {[%clk
0:01:52.3]} 29... g6 {[%clk 0:00:47.1]} 30. b4 {[%clk 0:01:46.9]} 30... Bf8
{[%clk 0:00:43.8]} 31. Rb6 {[%clk 0:01:40.3]} 31... Be7 {[%clk 0:00:43.5]} 32.
c5 {[%clk 0:01:37.9]} 32... Bd8 {[%clk 0:00:43.5]} 33. Rb5 {[%clk 0:01:35.2]}
33... Bc7 {[%clk 0:00:42.2]} 34. Ne3 {[%clk 0:01:33.8]} 34... Bc6 {[%clk
0:00:29.5]} 35. Rxb8+ {[%clk 0:01:34.7]} 35... Bxb8 {[%clk 0:00:30.4]} 36. Nd5
{[%clk 0:01:31.7]} 36... Kf8 {[%clk 0:00:28.6]} 37. Bf1 {[%clk 0:01:27.2]} 37...
f5 {[%clk 0:00:28.8]} 38. f3 {[%clk 0:01:24.7]} 38... Ba7 {[%clk 0:00:27.9]} 39.
Bc4 {[%clk 0:01:22]} 39... Bxd5 {[%clk 0:00:20.6]} 40. exd5 {[%clk 0:01:21.3]}
40... Ke7 {[%clk 0:00:21.1]} 41. Kf2 {[%clk 0:01:20.5]} 41... h6 {[%clk
0:00:20.6]} 42. Ke3 {[%clk 0:01:20.2]} 42... g5 {[%clk 0:00:21]} 43. d6+ {[%clk
0:01:16]} 43... Kf6 {[%clk 0:00:20]} 44. hxg5+ {[%clk 0:01:14.6]} 44... hxg5
{[%clk 0:00:20.9]} 45. Bd5 {[%clk 0:01:10.4]} 45... f4+ {[%clk 0:00:09.5]} 46.
gxf4 {[%clk 0:01:09.2]} 46... exf4+ {[%clk 0:00:10.4]} 47. Kd4 {[%clk
0:01:02.7]} 47... Bb8 {[%clk 0:00:03.4]} 48. b5 {[%clk 0:01:01.5]} 1-0

[Event "*** Titled Tuesday Blitz"]
[Site "Chess.com"]
[Date "2020.11.03"]
[Round "9"]
[White "szefru"]
[Black "Chamal_Gedgafov"]
[Result "0-1"]
[WhiteElo "2250"]
[BlackElo "2136"]
[TimeControl "180+1"]
[EndTime "11:48:52 PST"]
[Termination "Chamal_Gedgafov won by checkmate"]

1. e4 {[%clk 0:03:00.9]} 1... e6 {[%clk 0:02:59.3]} 2. d4 {[%clk 0:02:59.8]}
2... d5 {[%clk 0:02:58.8]} 3. Nd2 {[%clk 0:03:00.2]} 3... a6 {[%clk 0:02:58.1]}
4. e5 {[%clk 0:02:58.4]} 4... c5 {[%clk 0:02:57.8]} 5. c3 {[%clk 0:02:58.6]}
5... Nc6 {[%clk 0:02:58.2]} 6. Ne2 {[%clk 0:02:39.8]} 6... Qb6 {[%clk
0:02:56.3]} 7. Nf3 {[%clk 0:02:34.9]} 7... Nge7 {[%clk 0:02:51.5]} 8. g3 {[%clk
0:02:33.3]} 8... Nf5 {[%clk 0:02:50.4]} 9. Bg2 {[%clk 0:02:29.7]} 9... cxd4
{[%clk 0:02:49.8]} 10. cxd4 {[%clk 0:02:30.6]} 10... Bb4+ {[%clk 0:02:49.1]} 11.
Kf1 {[%clk 0:02:22]} 11... O-O {[%clk 0:02:43.4]} 12. g4 {[%clk 0:02:22]} 12...
Nh6 {[%clk 0:02:36.9]} 13. Bxh6 {[%clk 0:02:20.8]} 13... gxh6 {[%clk 0:02:36.2]}
14. h4 {[%clk 0:02:15.2]} 14... f6 {[%clk 0:02:26.8]} 15. exf6 {[%clk
0:02:13.5]} 15... Rxf6 {[%clk 0:02:27.4]} 16. g5 {[%clk 0:02:13.6]} 16... hxg5
{[%clk 0:02:03.6]} 17. hxg5 {[%clk 0:02:14.5]} 17... Rg6 {[%clk 0:02:03.8]} 18.
Qd3 {[%clk 0:02:07]} 18... Bd7 {[%clk 0:02:00.4]} 19. Nh4 {[%clk 0:02:06.5]}
19... Rg7 {[%clk 0:02:00.3]} 20. g6 {[%clk 0:02:05.6]} 20... Be8 {[%clk
0:01:45.3]} 21. gxh7+ {[%clk 0:02:02.7]} 21... Kh8 {[%clk 0:01:45.1]} 22. Nf4
{[%clk 0:02:00.1]} 22... Ne7 {[%clk 0:01:34.9]} 23. a4 {[%clk 0:01:28.6]} 23...
Qd6 {[%clk 0:01:24.8]} 24. Qe3 {[%clk 0:01:12.8]} 24... Bf7 {[%clk 0:01:23.3]}
25. Bh3 {[%clk 0:01:11.7]} 25... Re8 {[%clk 0:01:12.6]} 26. Bxe6 {[%clk
0:00:52.9]} 26... Nc6 {[%clk 0:00:39]} 27. Bxf7 {[%clk 0:00:37.7]} 27... Rxe3
{[%clk 0:00:35.5]} 28. Nfg6+ {[%clk 0:00:37.8]} 28... Rxg6 {[%clk 0:00:35.1]}
29. Nxg6+ {[%clk 0:00:38.7]} 29... Qxg6 {[%clk 0:00:34.2]} 30. Bxg6 {[%clk
0:00:39.6]} 30... Re6 {[%clk 0:00:29]} 31. Bd3 {[%clk 0:00:27.1]} 31... Nxd4
{[%clk 0:00:26.3]} 32. Rg1 {[%clk 0:00:26.9]} 32... Re8 {[%clk 0:00:25.4]} 33.
Rc1 {[%clk 0:00:25.8]} 33... Ne6 {[%clk 0:00:16.9]} 34. Bf5 {[%clk 0:00:18.6]}
34... Nf4 {[%clk 0:00:16.4]} 35. Rc7 {[%clk 0:00:18]} 35... Re1# {[%clk
0:00:15.4]} 0-1

[Event "*** Titled Tuesday Blitz"]
[Site "Chess.com"]
[Date "2020.11.03"]
[Round "9"]
[White "Tomekas1"]
[Black "MariaFominykh"]
[Result "0-1"]
[WhiteElo "2450"]
[BlackElo "2351"]
[TimeControl "180+1"]
[EndTime "11:48:55 PST"]
[Termination "MariaFominykh won on time"]

1. e4 {[%clk 0:03:00.9]} 1... e6 {[%clk 0:02:59.4]} 2. d4 {[%clk 0:03:00.8]}
2... d5 {[%clk 0:03:00]} 3. Nc3 {[%clk 0:03:01]} 3... Nf6 {[%clk 0:02:57.1]} 4.
e5 {[%clk 0:03:00.9]} 4... Nfd7 {[%clk 0:02:57.2]} 5. f4 {[%clk 0:03:01.5]} 5...
c5 {[%clk 0:02:57.6]} 6. Nf3 {[%clk 0:03:02.2]} 6... Nc6 {[%clk 0:02:57.7]} 7.
Be3 {[%clk 0:03:02.9]} 7... Rb8 {[%clk 0:02:37]} 8. Qd2 {[%clk 0:03:01.9]} 8...
Be7 {[%clk 0:02:25.6]} 9. Be2 {[%clk 0:02:54.8]} 9... O-O {[%clk 0:02:15]} 10.
O-O {[%clk 0:02:54.5]} 10... cxd4 {[%clk 0:02:13]} 11. Nxd4 {[%clk 0:02:53.9]}
11... Nc5 {[%clk 0:02:00]} 12. Rad1 {[%clk 0:02:17.5]} 12... f6 {[%clk
0:01:52.7]} 13. exf6 {[%clk 0:02:02.7]} 13... Rxf6 {[%clk 0:01:52.8]} 14. Bg4
{[%clk 0:01:45.7]} 14... e5 {[%clk 0:01:34.5]} 15. Nxc6 {[%clk 0:01:44.4]} 15...
bxc6 {[%clk 0:01:29.5]} 16. Bxc8 {[%clk 0:01:41.6]} 16... Qxc8 {[%clk
0:01:14.8]} 17. fxe5 {[%clk 0:01:41]} 17... Rxf1+ {[%clk 0:01:14.3]} 18. Rxf1
{[%clk 0:01:40.7]} 18... Rxb2 {[%clk 0:00:54.3]} 19. Qf2 {[%clk 0:01:07.3]}
19... Qf8 {[%clk 0:00:19.5]} 20. Qg3 {[%clk 0:00:51.4]} 20... Qe8 {[%clk
0:00:11.7]} 21. Qf2 {[%clk 0:00:31.5]} 21... Ne6 {[%clk 0:00:11.1]} 22. Qf5
{[%clk 0:00:24.9]} 22... Qg6 {[%clk 0:00:09.1]} 23. Qxg6 {[%clk 0:00:09.7]}
23... hxg6 {[%clk 0:00:10]} 24. Bxa7 {[%clk 0:00:09.4]} 24... Rxc2 {[%clk
0:00:09.6]} 25. Rf3 {[%clk 0:00:04.9]} 25... d4 {[%clk 0:00:07.1]} 26. Ne4
{[%clk 0:00:04]} 26... Rxa2 {[%clk 0:00:07.1]} 27. Bb6 {[%clk 0:00:01.7]} 27...
c5 {[%clk 0:00:06.5]} 0-1

[Event "*** Titled Tuesday Blitz"]
[Site "Chess.com"]
[Date "2020.11.03"]
[Round "9"]
[White "UB_TheQueen"]
[Black "CraiggoryC"]
[Result "0-1"]
[WhiteElo "2064"]
[BlackElo "2275"]
[TimeControl "180+1"]
[EndTime "11:48:57 PST"]
[Termination "CraiggoryC won on time"]

1. e4 {[%clk 0:03:00.9]} 1... e6 {[%clk 0:02:59.8]} 2. d4 {[%clk 0:03:00.5]}
2... d5 {[%clk 0:03:00.4]} 3. Nc3 {[%clk 0:03:00.6]} 3... Bb4 {[%clk 0:02:59.5]}
4. e5 {[%clk 0:02:59.8]} 4... c5 {[%clk 0:02:59.6]} 5. a3 {[%clk 0:02:58.8]}
5... Bxc3+ {[%clk 0:03:00.1]} 6. bxc3 {[%clk 0:02:59.7]} 6... Ne7 {[%clk
0:03:00.2]} 7. Qg4 {[%clk 0:02:59.6]} 7... Qc7 {[%clk 0:03:00.2]} 8. Qxg7 {[%clk
0:02:59.1]} 8... Rg8 {[%clk 0:02:59.4]} 9. Qxh7 {[%clk 0:02:59.5]} 9... cxd4
{[%clk 0:03:00]} 10. Ne2 {[%clk 0:02:58]} 10... Bd7 {[%clk 0:02:59.8]} 11. f4
{[%clk 0:02:58.1]} 11... Nbc6 {[%clk 0:02:59.6]} 12. Qd3 {[%clk 0:02:58]} 12...
dxc3 {[%clk 0:02:58.3]} 13. h4 {[%clk 0:02:50]} 13... O-O-O {[%clk 0:02:46.2]}
14. h5 {[%clk 0:02:49]} 14... d4 {[%clk 0:02:41.1]} 15. h6 {[%clk 0:02:43.2]}
15... Rg6 {[%clk 0:02:20.9]} 16. h7 {[%clk 0:02:29.2]} 16... Rh8 {[%clk
0:02:19.7]} 17. Nxd4 {[%clk 0:02:16.9]} 17... Nxd4 {[%clk 0:02:09.5]} 18. Qxd4
{[%clk 0:02:16.2]} 18... Kb8 {[%clk 0:02:07.1]} 19. Be3 {[%clk 0:02:12.9]} 19...
b6 {[%clk 0:01:56.9]} 20. O-O-O {[%clk 0:01:53.4]} 20... Bc8 {[%clk 0:01:02.3]}
21. Bd3 {[%clk 0:01:14.9]} 21... Nf5 {[%clk 0:00:49]} 22. Bxf5 {[%clk
0:01:07.7]} 22... exf5 {[%clk 0:00:49.2]} 23. e6 {[%clk 0:00:52.9]} 23... f6
{[%clk 0:00:36.8]} 24. Qd5 {[%clk 0:00:34.7]} 24... Rxh7 {[%clk 0:00:20.6]} 25.
Rxh7 {[%clk 0:00:21.2]} 25... Qxh7 {[%clk 0:00:20.2]} 26. Qxf5 {[%clk
0:00:21.7]} 26... Rg7 {[%clk 0:00:17.3]} 27. Qd5 {[%clk 0:00:18.6]} 27... Bb7
{[%clk 0:00:13.8]} 28. Qd8+ {[%clk 0:00:14.9]} 28... Bc8 {[%clk 0:00:14.2]} 29.
f5 {[%clk 0:00:14.1]} 29... Rxg2 {[%clk 0:00:13.5]} 30. Bf4+ {[%clk 0:00:13.1]}
30... Kb7 {[%clk 0:00:12.6]} 31. e7 {[%clk 0:00:11]} 31... Qxf5 {[%clk
0:00:11.7]} 32. Qxc8+ {[%clk 0:00:03.2]} 32... Qxc8 {[%clk 0:00:10.8]} 33. Rd8
{[%clk 0:00:01.4]} 33... Qf5 {[%clk 0:00:10.9]} 0-1